bitfinex/quotes_SOLUSD_20220212
["timestamp","ask_amount","ask_price","bid_price","bid_amount"]
[1644648452990,38.9608311,93.582,93.49,28.7115]
[1644648453384,38.9608311,93.582,93.48,52.62005217]
[1644648453586,38.9608311,93.582,93.49,12.67]
[1644648454484,5.345,93.613,93.49,28.7115]
[1644648454684,5.345,93.64,93.49,28.7115]
[1644648454884,25.86436791,93.639,93.49,28.7115]
[1644648455286,48.35848603,93.637,93.49,28.7115]
[1644648455489,5.343,93.636,93.49,28.7115]
[1644648457487,17.35299091,93.635,93.49,28.7115]
[1644648457688,5.344,93.634,93.49,28.7115]
[1644648458989,5.344,93.636,93.49,28.7115]
[1644648459389,12.67,93.63,93.49,28.7115]
[1644648459591,5.344,93.629,93.49,28.7115]
[1644648460190,2.38366791,93.628,93.49,28.7115]
[1644648460393,5.344,93.627,93.49,28.7115]
[1644648460790,5.344,93.629,93.49,28.7115]
[1644648460991,48.35848603,93.637,93.49,28.7115]
[1644648460992,5.344,93.63,93.491,2.38366791]
[1644648461192,5.343,93.636,93.53,16.0299]
[1644648461391,5.343,93.636,93.54,12.67]
[1644648462793,5.343,93.636,93.56,16.0291]
[1644648463997,48.35848603,93.637,93.56,16.0291]
[1644648465198,5.341,93.636,93.56,16.0291]
[1644648466102,5.341,93.649,93.56,16.0291]
[1644648466298,5.341,93.653,93.56,16.0291]
[1644648466598,5.341,93.653,93.57,12.67]
[1644648466796,113.0,93.666,93.59,16.0219]
[1644648468716,113.0,93.666,93.59,28.6919]
[1644648469015,5.34,93.689,93.59,28.6919]
[1644648469216,42.67171198,93.698,93.59,28.6919]
[1644648469519,44.91466399,93.683,93.59,28.6919]
[1644648469917,5.339,93.682,93.59,28.6919]
[1644648470418,5.339,93.682,93.59,16.0219]
[1644648471921,44.91466399,93.683,93.59,16.0219]
[1644648471922,44.91466399,93.683,93.59,28.6919]
[1644648472119,5.339,93.706,93.59,28.6919]
[1644648473121,35.9821437,93.705,93.59,28.6919]
[1644648473423,5.339,93.704,93.59,28.6919]
[1644648474021,13.61781894,93.704,93.59,28.6919]
[1644648474626,113.0,93.683,93.59,28.6919]
[1644648475123,5.339,93.709,93.591,2.38366791]
[1644648475323,0.03314606,93.72,93.62,16.0126]
[1644648475525,113.0,93.763,93.62,16.0126]
[1644648475526,0.03314606,93.74,93.63,12.67]
[1644648475725,5.337,93.739,93.63,12.67]
[1644648475927,0.03314606,93.74,93.63,12.67]
[1644648476125,24.2772,93.745,93.63,12.67]
[1644648476126,42.98107677,93.742,93.63,12.67]
[1644648476525,5.336,93.741,93.66,16.011]
[1644648476725,121.27881894,93.763,93.66,16.011]
[1644648476726,0.03314606,93.76,93.67,12.67]
[1644648476930,113.0,93.763,93.67,12.67]
[1644648477126,0.03314606,93.79,93.67,12.67]
[1644648477525,5.333,93.789,93.69,16.0012]
[1644648477725,42.29880032,93.788,93.69,28.6712]
[1644648478126,25.06965882,93.787,93.69,16.0012]
[1644648478327,113.0,93.781,93.65,12.67]
[1644648478533,21.37894606,93.78,93.65,12.67]
[1644648478725,57.3091582,93.78,93.65,28.6846]
[1644648478926,69.9791582,93.78,93.62,12.67]
[1644648479226,0.03314606,93.77,93.62,12.67]
[1644648479428,5.336,93.769,93.62,12.67]
[1644648479627,43.5464836,93.768,93.62,12.67]
[1644648479830,5.336,93.767,93.62,12.67]
[1644648480028,7.71966791,93.767,93.62,12.67]
[1644648480431,5.336,93.767,93.62,12.67]
[1644648480832,2.38366791,93.766,93.63,16.0172]
[1644648481033,43.5464836,93.768,93.64,12.67]
[1644648481227,5.336,93.766,93.64,12.67]
[1644648481430,5.335,93.767,93.64,12.67]
[1644648481828,43.5464836,93.768,93.64,12.67]
[1644648482027,0.03314606,93.77,93.67,16.0076]
[1644648482227,0.03314606,93.78,93.68,12.67]
[1644648482431,0.03314606,93.8,93.68,12.67]
[1644648482631,0.03314606,93.81,93.68,12.67]
[1644648482832,0.03314606,93.8,93.68,12.67]
[1644648483037,0.03314606,93.81,93.68,12.67]
[1644648483232,5.333,93.799,93.68,12.67]
[1644648483433,45.78154082,93.798,93.68,12.67]
[1644648483837,5.333,93.797,93.71,15.9996]
[1644648484236,0.03314606,93.81,93.71,28.6696]
[1644648484438,0.03314606,93.82,93.71,28.6696]
[1644648484637,113.0,93.838,93.71,28.6696]
[1644648484837,0.03314606,93.82,93.71,28.6696]
[1644648485038,0.03314606,93.83,93.71,28.6696]
[1644648485238,0.03314606,93.83,93.711,28.71678382]
[1644648485438,0.03314606,93.83,93.74,15.9885]
[1644648485643,39.63435074,93.848,93.75,12.67]
[1644648485644,0.03314606,93.84,93.75,12.67]
[1644648485840,39.63435074,93.848,93.75,12.67]
[1644648486042,5.33,93.839,93.75,12.67]
[1644648486243,39.63435074,93.848,93.75,12.67]
[1644648486439,5.33,93.847,93.75,12.67]
[1644648486839,5.33,93.847,93.77,15.9892]
[1644648487041,0.03314606,93.86,93.78,12.67]
[1644648487241,0.03314606,93.88,93.78,12.67]
[1644648487441,5.329,93.891,93.78,12.67]
[1644648487642,0.03314606,93.89,93.78,12.67]
[1644648487843,5.328,93.889,93.8,15.9842]
[1644648488442,2.38366791,93.888,93.713,74.096]
[1644648488647,5.33,93.887,93.75,12.67]
[1644648488846,0.03314606,93.88,93.75,12.67]
[1644648489041,5.329,93.879,93.75,12.67]
[1644648489243,5.329,93.879,93.715,10.05597079]
[1644648489441,5.329,93.879,93.713,74.096]
[1644648489442,7.71266791,93.879,93.78,15.9921]
[1644648489643,2.38366791,93.878,93.713,74.096]
[1644648489845,5.33,93.877,93.713,74.096]
[1644648490244,35.10794573,93.875,93.713,74.096]
[1644648490446,35.10794573,93.875,93.73,12.67]
[1644648490744,15.9954,93.87,93.76,15.9951]
[1644648490945,5.329,93.869,93.76,15.9951]
[1644648491646,5.329,93.874,93.76,15.9951]
[1644648493950,113.0,93.849,93.76,15.9951]
[1644648494149,46.69517323,93.847,93.76,15.9951]
[1644648494346,5.33,93.846,93.76,15.9951]
[1644648495449,2.38366791,93.845,93.74,15.9987]
[1644648495650,0.03314606,93.84,93.702,522.53645179]
[1644648495849,0.03314606,93.83,93.702,522.53645179]
[1644648496050,36.30320038,93.828,93.702,522.53645179]
[1644648496252,5.332,93.827,93.702,522.53645179]
[1644648496652,7.71566791,93.827,93.72,16.0019]
[1644648496853,5.332,93.827,93.72,16.0019]
[1644648497253,5.332,93.827,93.721,2.38366791]
[1644648497458,36.30320038,93.828,93.721,2.38366791]
[1644648497858,36.30320038,93.828,93.75,15.9926]
[1644648498260,36.30320038,93.828,93.702,24.0641]
[1644648498261,7.71466791,93.827,93.702,24.0641]
[1644648498660,2.38366791,93.826,93.702,24.0641]
[1644648498861,5.332,93.825,93.702,24.0641]
[1644648499260,2.38366791,93.824,93.702,24.0641]
[1644648499661,5.332,93.823,93.702,24.0641]
[1644648499861,5.332,93.823,93.73,16.0003]
[1644648500060,5.332,93.827,93.73,16.0003]
[1644648502485,36.30320038,93.828,93.73,16.0003]
[1644648503085,5.331,93.827,93.73,16.0003]
[1644648505087,5.331,93.827,93.73,28.6703]
[1644648505288,0.03314606,93.84,93.73,28.6703]
[1644648505485,5.331,93.847,93.73,28.6703]
[1644648506085,35.78872909,93.846,93.73,28.6703]
[1644648506485,5.331,93.845,93.73,28.6703]
[1644648506686,35.78872909,93.846,93.73,28.6703]
[1644648507088,0.03314606,93.85,93.73,28.6703]
[1644648507488,0.03314606,93.85,93.76,15.9854]
[1644648507689,0.03314606,93.87,93.77,12.67]
[1644648508089,1.43065942,93.892,93.771,2.38366791]
[1644648508388,0.03314606,93.87,93.771,2.38366791]
[1644648508594,0.03314606,93.89,93.79,15.9843]
[1644648508787,113.0,93.937,93.79,15.9843]
[1644648508788,0.03314606,93.9,93.8,12.67]
[1644648508987,0.03314606,93.92,93.801,3.94]
[1644648509190,0.03314606,93.93,93.801,6.32366791]
[1644648509387,0.03314606,93.92,93.801,6.32366791]
[1644648509594,0.03314606,93.93,93.83,15.9762]
[1644648509792,0.03314606,93.92,93.84,12.67]
[1644648509988,45.33557589,93.933,93.84,12.67]
[1644648510190,113.0,93.937,93.84,12.67]
[1644648510390,113.0,93.937,93.841,2.38366791]
[1644648510988,0.03314606,93.96,93.841,2.38366791]
[1644648511191,5.324,93.959,93.841,2.38366791]
[1644648511387,0.03314606,93.97,93.86,15.9748]
[1644648511589,0.03314606,93.98,93.87,12.67]
[1644648511792,0.03314606,93.97,93.881,3.94]
[1644648511988,24.9877,94.018,93.861,34.43501993]
[1644648511989,0.03314606,93.99,93.89,12.67]
[1644648512191,6.75365942,94.015,93.9,12.67]
[1644648512192,5.323,93.979,93.9,12.67]
[1644648512389,36.56776436,93.978,93.91,12.67]
[1644648512589,5.323,93.978,93.92,15.9674]
[1644648512789,0.03314606,94.01,93.92,15.9674]
[1644648512992,5.321,93.999,93.92,15.9674]
[1644648513190,5.32,94.015,93.92,15.9674]
[1644648513591,43.6931315,94.014,93.92,28.6374]
[1644648513791,5.321,94.013,93.92,28.6374]
[1644648514592,5.321,94.013,93.92,15.9674]
[1644648515597,2.38366791,94.012,93.92,15.9674]
[1644648515794,5.321,94.011,93.92,15.9674]
[1644648515995,5.321,94.012,93.92,15.9674]
[1644648516195,5.321,94.01,93.92,15.9674]
[1644648516396,5.321,94.011,93.92,15.9674]
[1644648516597,5.321,94.013,93.9,15.971]
[1644648516799,2.38366791,94.009,93.89,12.67]
[1644648516999,113.0,93.981,93.89,65.8956]
[1644648517199,46.6346182,93.98,93.89,68.27926791]
[1644648517404,46.6346182,93.98,93.89,15.05366791]
[1644648517599,113.0,93.981,93.89,15.05366791]
[1644648517799,0.03314606,94.0,93.89,15.05366791]
[1644648517800,5.322,93.999,93.91,15.9692]
[1644648518000,0.03314606,94.01,93.92,12.67]
[1644648518203,0.03314606,94.03,93.93,211.5406]
[1644648518399,0.03314606,94.03,93.911,2.38366791]
[1644648518400,0.03314606,94.04,93.95,158.35]
[1644648518600,0.03314606,94.03,93.981,3.94]
[1644648518801,113.0,94.158,93.95,158.35]
[1644648518802,113.0,94.058,93.99,28.6182]
[1644648519003,113.0,94.058,94.0,12.67]
[1644648519904,0.03314606,94.09,94.0,28.6234]
[1644648520103,71.3644,94.102,94.0,28.6234]
[1644648520301,113.0,94.083,94.0,28.6234]
[1644648520502,5.316,94.082,93.97,65.8543]
[1644648520704,0.03314606,94.08,93.97,65.8543]
[1644648520903,5.317,94.079,93.97,65.8543]
[1644648521202,5.317,94.079,93.98,15.9569]
[1644648521402,45.15575512,94.081,93.99,12.67]
[1644648521603,45.15575512,94.081,94.0,53.1666]
[1644648521906,113.0,94.083,94.0,65.8366]
[1644648522107,113.0,94.083,94.01,15.95]
[1644648522706,5.316,94.129,94.01,15.95]
[1644648522906,48.50978503,94.128,94.02,12.67]
[1644648523103,5.314,94.127,94.03,53.1491]
[1644648523505,5.314,94.127,94.04,12.67]
[1644648523703,5.314,94.127,94.05,15.9448]
[1644648523905,5.314,94.127,94.04,12.67]
[1644648523906,7.69766791,94.127,94.02,12.67]
[1644648524104,7.69766791,94.127,93.99,53.1728]
[1644648524304,13.16010199,94.127,93.97,12.67]
[1644648524505,57.1276735,94.126,93.97,12.67]
[1644648524704,5.316,94.125,93.98,15.9551]
[1644648524904,7.69966791,94.125,93.98,28.6251]
[1644648525106,2.38366791,94.124,93.98,28.6251]
[1644648525404,57.1276735,94.126,93.98,28.6251]
[1644648525405,0.03314606,94.11,93.98,28.6251]
[1644648525704,0.03314606,94.12,93.981,2.38366791]
[1644648525905,5.316,94.109,94.02,15.9484]
[1644648526105,35.7384567,94.108,94.02,15.9484]
[1644648527414,5.315,94.107,94.02,15.9484]
[1644648528408,113.03314606,94.12,94.02,28.6184]
[1644648528609,113.0,94.12,94.02,28.6184]
[1644648529208,35.90686695,94.119,94.02,28.6184]
[1644648529409,5.315,94.118,94.02,28.6184]
[1644648529609,5.315,94.118,94.0,15.9534]
[1644648529810,25.93426791,94.117,94.0,15.9534]
[1644648530010,5.315,94.116,94.0,15.9534]
[1644648530211,7.69866791,94.116,94.0,15.9534]
[1644648530410,2.38366791,94.115,94.0,15.9534]
[1644648530611,5.315,94.114,94.0,15.9534]
[1644648530912,15.9544,94.11,94.0,15.9534]
[1644648531309,2.38366791,94.109,94.0,15.9534]
[1644648531512,5.316,94.108,94.0,15.9534]
[1644648531713,113.0,94.086,94.0,15.9534]
[1644648532113,113.0,94.086,93.98,65.8432]
[1644648532114,0.03314606,94.11,94.03,15.9436]
[1644648532413,0.03314606,94.13,94.04,12.67]
[1644648532615,0.03314606,94.15,94.04,12.67]
[1644648532817,70.4708,94.181,94.041,2.38366791]
[1644648532818,0.03314606,94.17,94.041,2.38366791]
[1644648533114,113.0,94.161,94.041,51.33460647]
[1644648533314,113.0,94.161,94.042,48.95093856]
[1644648533514,113.0,94.161,94.042,51.33460647]
[1644648533716,113.0,94.161,94.043,51.33460647]
[1644648534117,113.0,94.161,94.044,15.21098592]
[1644648534318,42.01045746,94.169,94.044,51.33460647]
[1644648534517,42.01045746,94.169,94.045,15.21098592]
[1644648534717,42.01045746,94.169,94.06,12.67]
[1644648534940,42.01045746,94.169,94.06,28.6066]
[1644648535140,5.313,94.201,94.061,32.94665882]
[1644648535341,113.0,94.202,94.061,32.94665882]
[1644648535541,113.0,94.202,94.062,32.94665882]
[1644648535943,113.0,94.202,94.061,18.38794765]
[1644648535944,113.0,94.202,94.063,32.94665882]
[1644648536145,46.93878181,94.201,94.063,32.94665882]
[1644648536343,46.93878181,94.201,94.064,32.94665882]
[1644648536546,46.93878181,94.201,94.1,15.9308]
[1644648536743,41.62778181,94.201,94.11,12.67]
[1644648538545,113.0,94.202,94.13,15.9303]
[1644648538745,113.0,94.202,94.14,12.67]
[1644648539651,5.309,94.241,94.14,12.67]
[1644648539652,45.53634786,94.204,94.15,15.9269]
[1644648539850,5.309,94.203,94.15,15.9269]
[1644648540148,45.53634786,94.204,94.15,15.9269]
[1644648540346,5.309,94.203,94.15,15.9269]
[1644648540551,5.309,94.203,94.11,12.67]
[1644648541849,5.309,94.203,94.11,28.6049]
[1644648542650,5.309,94.203,94.021,1.50253849]
[1644648542651,12.67,94.2,94.021,3.94]
[1644648542850,113.0,94.167,94.07,15.9414]
[1644648543053,42.70841803,94.166,94.07,15.9414]
[1644648543750,2.84638296,94.165,94.07,15.9414]
[1644648543951,5.312,94.164,94.07,15.9414]
[1644648544354,5.312,94.165,94.07,15.9414]
[1644648546755,37.39641803,94.166,94.08,12.67]
[1644648546957,37.39641803,94.166,94.1,15.9365]
[1644648547157,5.312,94.165,94.06,12.67]
[1644648547959,5.312,94.165,94.061,2.38366791]
[1644648548160,37.39641803,94.166,94.08,15.9395]
[1644648549358,5.312,94.165,94.08,15.9395]
[1644648549560,37.39641803,94.166,94.08,15.9395]
[1644648550860,37.39641803,94.166,94.08,28.6095]
[1644648551662,37.39641803,94.166,94.08,15.9395]
[1644648551862,5.312,94.165,94.08,15.9395]
[1644648552063,37.39641803,94.166,94.08,15.9395]
[1644648553267,5.312,94.165,94.08,15.9395]
[1644648553465,37.39641803,94.166,94.08,15.9395]
[1644648554665,5.312,94.165,94.08,15.9395]
[1644648555769,37.39641803,94.166,94.081,2.38366791]
[1644648555964,37.39641803,94.166,94.1,15.9327]
[1644648556164,37.39641803,94.166,94.11,12.67]
[1644648557375,37.39641803,94.166,94.12,15.9315]
[1644648557566,37.39641803,94.166,94.12,28.6015]
[1644648557766,0.03280644,94.2,94.12,28.6015]
[1644648557967,5.309,94.199,94.121,2.38366791]
[1644648558170,113.0,94.203,94.121,2.38366791]
[1644648558373,113.0,94.203,94.14,15.9275]
[1644648558772,42.23424322,94.202,94.14,15.9275]
[1644648559470,5.309,94.201,94.12,15.9326]
[1644648559669,5.309,94.201,94.09,12.67]
[1644648559969,5.309,94.201,94.063,2.38366791]
[1644648559970,0.03280644,94.19,94.063,2.38366791]
[1644648560469,5.312,94.189,94.063,2.38366791]
[1644648560874,40.34894678,94.162,94.1,15.9362]
[1644648561069,5.311,94.161,94.08,53.1205]
[1644648561270,40.34894678,94.162,94.063,2.38366791]
[1644648561271,40.34894678,94.162,94.101,2.38366791]
[1644648561773,113.0,94.213,94.11,15.9312]
[1644648561774,0.03280644,94.19,94.11,15.9312]
[1644648561970,0.03280644,94.21,94.11,15.9312]
[1644648562170,5.309,94.209,94.111,2.38366791]
[1644648562372,5.309,94.211,94.111,2.38366791]
[1644648562570,113.0,94.213,94.111,2.38366791]
[1644648562772,42.06680827,94.212,94.111,2.38366791]
[1644648562970,47.37580827,94.212,94.111,2.38366791]
[1644648563772,47.37580827,94.212,94.13,15.93]
[1644648565275,1.43065942,94.211,94.11,15.9337]
[1644648565575,1.43065942,94.199,94.08,12.67]
[1644648565775,113.0,94.171,94.07,12.67]
[1644648565986,41.66321331,94.17,94.086,2.38366791]
[1644648566179,41.66321331,94.17,94.09,15.9371]
[1644648566377,41.66321331,94.17,94.09,28.6071]
[1644648566577,41.66321331,94.17,94.091,2.38366791]
[1644648567776,41.66321331,94.17,94.11,15.9333]
[1644648568177,41.66321331,94.17,94.11,28.6033]
[1644648568684,41.66321331,94.17,94.081,2.38366791]
[1644648568883,5.312,94.169,94.09,15.9359]
[1644648569081,41.66321331,94.17,94.09,15.9359]
[1644648569881,41.66321331,94.17,94.091,2.38366791]
[1644648570083,41.66321331,94.17,94.1,15.9336]
[1644648572685,5.311,94.169,94.1,15.9336]
[1644648572983,41.66321331,94.17,94.1,15.9336]
[1644648573183,5.311,94.169,94.1,15.9336]
[1644648573385,41.66321331,94.17,94.1,15.9336]
[1644648573584,5.311,94.169,94.1,15.9336]
[1644648574784,41.66321331,94.17,94.11,28.6023]
[1644648577101,41.66321331,94.17,94.111,2.38366791]
[1644648579004,5.311,94.169,94.082,2.38366791]
[1644648580304,5.311,94.169,94.09,15.9361]
[1644648582806,5.311,94.169,94.082,2.38366791]
[1644648583005,154.66321331,94.17,94.07,12.67]
[1644648583207,154.66321331,94.17,94.071,2.38366791]
[1644648583608,154.16321331,94.17,94.074,1.50253849]
[1644648583809,154.16321331,94.17,94.08,15.9372]
[1644648584010,5.312,94.169,94.08,15.9372]
[1644648584207,154.16321331,94.17,94.08,15.9372]
[1644648584405,154.16321331,94.17,94.083,1.50253849]
[1644648584609,154.16321331,94.17,94.085,1.50253849]
[1644648584809,5.312,94.169,94.083,1.50253849]
[1644648585010,154.16321331,94.17,94.082,1.50253849]
[1644648585208,5.312,94.168,94.084,2.38366791]
[1644648585409,5.312,94.169,94.084,2.38366791]
[1644648585610,5.312,94.167,94.09,12.67]
[1644648585812,154.16321331,94.17,94.1,15.9348]
[1644648586609,5.311,94.169,94.08,12.67]
[1644648586810,5.311,94.169,94.08,28.6076]
[1644648588510,154.16321331,94.17,94.08,28.6076]
[1644648590510,5.312,94.169,94.08,28.6076]
[1644648590710,154.16321331,94.17,94.08,28.6076]
[1644648590910,5.312,94.169,94.08,28.6076]
[1644648591108,154.16321331,94.17,94.08,28.6076]
[1644648591310,5.312,94.169,94.08,28.6076]
[1644648591513,113.0,94.17,94.08,28.6076]
[1644648591818,5.312,94.179,94.082,1.50253849]
[1644648592011,0.03280644,94.18,94.101,1.50253849]
[1644648592211,0.03280644,94.2,94.11,12.67]
[1644648592413,5.309,94.199,94.11,12.67]
[1644648592612,42.16416869,94.198,94.11,12.67]
[1644648592910,1.43065942,94.197,94.091,1.50253849]
[1644648593116,44.45518621,94.175,94.088,1.50253849]
[1644648593310,44.45518621,94.175,94.1,12.67]
[1644648593311,5.311,94.174,94.1,12.67]
[1644648593511,44.45518621,94.175,94.1,28.604]
[1644648594211,44.45518621,94.175,94.1,12.67]
[1644648594417,7.69466791,94.174,94.072,1.50253849]
[1644648594613,44.45518621,94.175,94.077,1.50253849]
[1644648594812,44.45518621,94.175,94.081,1.50253849]
[1644648595012,44.45518621,94.175,94.08,14.17253849]
[1644648595815,44.45518621,94.175,94.08,28.6077]
[1644648596015,5.311,94.174,94.08,28.6077]
[1644648596714,44.45518621,94.175,94.081,17.7356729]
[1644648596917,44.45518621,94.175,94.11,15.9332]
[1644648597113,44.45518621,94.175,94.11,28.6032]
[1644648599315,44.45518621,94.175,94.08,53.1092]
[1644648599316,44.45518621,94.175,94.091,1.50253849]
[1644648599519,44.45518621,94.175,94.09,15.936]
[1644648599520,44.45518621,94.175,94.09,28.606]
[1644648599718,5.311,94.174,94.09,15.936]
[1644648599918,5.311,94.174,94.075,1.50253849]
[1644648600116,5.311,94.174,94.023,4.45064963]
[1644648600117,1.43065942,94.168,94.058,1.50253849]
[1644648600318,12.67,94.16,94.052,1.50253849]
[1644648600517,12.67,94.16,94.031,4.08519896]
[1644648600518,1.43065942,94.156,94.046,1.50253849]
[1644648600918,1.43065942,94.148,94.039,1.50253849]
[1644648601121,5.313,94.155,94.052,1.50253849]
[1644648601319,40.17985547,94.158,94.056,1.50253849]
[1644648601519,40.17985547,94.158,94.06,1.50253849]
[1644648601721,5.313,94.157,94.06,17.44423849]
[1644648601921,7.69666791,94.157,94.06,15.9417]
[1644648602124,5.313,94.157,94.054,1.50253849]
[1644648602331,5.313,94.157,94.057,1.50253849]
[1644648602519,5.313,94.157,94.051,1.50253849]
[1644648602820,2.38366791,94.156,94.046,1.50253849]
[1644648603021,1.43065942,94.154,94.038,1.50253849]
[1644648603220,12.67,94.15,94.038,1.50253849]
[1644648603418,5.313,94.149,94.038,1.50253849]
[1644648603619,14.82666791,94.149,94.034,1.50253849]
[1644648603822,15.9494,94.14,94.034,1.50253849]
[1644648604121,40.81294659,94.138,94.036,1.50253849]
[1644648604319,5.314,94.137,94.035,1.50253849]
[1644648604521,30.0214,94.137,94.036,1.50253849]
[1644648604721,30.0214,94.137,94.035,1.50253849]
[1644648604919,30.0214,94.137,94.033,1.50253849]
[1644648605620,30.0214,94.137,94.025,1.50253849]
[1644648606119,30.0214,94.137,94.024,1.50253849]
[1644648606319,12.67,94.13,94.024,1.50253849]
[1644648606522,5.314,94.129,94.02,15.948]
[1644648606721,7.69766791,94.129,94.02,15.948]
[1644648607020,2.38366791,94.128,94.02,15.948]
[1644648607221,5.314,94.127,94.02,15.948]
[1644648607420,5.314,94.127,94.02,17.45053849]
[1644648607621,5.314,94.129,94.02,17.45053849]
[1644648607822,5.314,94.129,94.02,15.948]
[1644648608222,5.314,94.129,94.022,1.50253849]
[1644648608522,2.38366791,94.128,94.02,15.948]
[1644648608721,5.314,94.127,94.02,15.948]
[1644648608923,5.314,94.128,94.02,15.948]
[1644648609122,5.314,94.129,94.02,15.948]
[1644648609922,2.38366791,94.128,94.02,15.948]
[1644648610223,4.314,94.127,94.02,15.948]
[1644648610423,4.314,94.127,94.01,1.50253849]
[1644648610724,41.24974172,94.119,93.991,1.50253849]
[1644648610923,12.67,94.11,93.99,1.50253849]
[1644648611128,12.67,94.11,93.991,1.50253849]
[1644648611423,7.69966791,94.109,93.991,1.50253849]
[1644648611625,42.44907004,94.099,93.99,17.45723849]
[1644648611824,5.316,94.098,94.001,1.50253849]
[1644648612227,5.316,94.098,94.002,1.50253849]
[1644648612425,52.185,94.098,93.997,1.50253849]
[1644648612626,52.185,94.098,93.996,1.50253849]
[1644648612827,52.185,94.098,94.0,15.953]
[1644648613229,2.38366791,94.097,94.0,15.953]
[1644648613431,5.316,94.096,94.0,15.953]
[1644648613731,2.38366791,94.095,94.0,15.953]
[1644648614130,5.316,94.094,93.984,1.50253849]
[1644648614330,5.316,94.094,93.98,28.626]
[1644648614531,2.38366791,94.093,93.98,65.8412]
[1644648614735,46.869,94.098,93.996,1.50253849]
[1644648614930,5.317,94.092,94.0,12.67]
[1644648615133,5.316,94.097,94.0,12.67]
[1644648615333,5.316,94.091,94.0,28.6235]
[1644648615632,5.316,94.096,94.0,28.6235]
[1644648615834,5.316,94.09,94.0,28.6235]
[1644648616035,5.316,94.097,94.0,28.6235]
[1644648616435,46.869,94.098,94.001,2.38366791]
[1644648616635,42.44907004,94.099,94.03,15.9475]
[1644648617640,5.315,94.145,94.031,21.6218793]
[1644648617841,5.314,94.165,94.07,15.937]
[1644648618041,5.313,94.159,94.07,28.607]
[1644648618240,5.312,94.164,94.071,2.38366791]
[1644648618439,5.312,94.175,94.071,2.38366791]
[1644648618640,37.06134557,94.174,94.072,13.21604893]
[1644648618840,37.06134557,94.174,94.072,47.08082168]
[1644648619039,37.06134557,94.174,94.1,15.9328]
[1644648619245,44.42588379,94.154,94.1,15.9328]
[1644648620241,5.311,94.153,94.08,15.9404]
[1644648621542,44.42588379,94.154,94.08,15.9404]
[1644648621742,5.312,94.153,94.08,15.9404]
[1644648622143,45.0,94.152,94.06,12.67]
[1644648622345,45.0,94.152,94.04,53.144]
[1644648622346,5.313,94.151,94.044,1.50253849]
[1644648622543,7.69666791,94.151,94.034,1.50253849]
[1644648622742,15.05366791,94.15,94.035,1.50253849]
[1644648622943,5.313,94.149,94.04,15.9481]
[1644648623243,7.69666791,94.149,94.04,15.9481]
[1644648623445,2.38366791,94.148,94.04,15.9481]
[1644648623643,5.313,94.147,94.04,15.9481]
[1644648624044,15.9504,94.13,94.022,1.50253849]
[1644648624243,15.9504,94.13,94.02,15.9513]
[1644648624244,46.67338905,94.129,94.02,15.9513]
[1644648624443,51.98738905,94.129,94.02,15.9513]
[1644648624644,54.37105696,94.129,94.02,15.9513]
[1644648625047,2.38366791,94.128,94.02,15.9513]
[1644648625247,5.314,94.127,94.02,15.9513]
[1644648626146,2.38366791,94.126,94.02,15.9513]
[1644648626548,5.315,94.125,94.02,15.9513]
[1644648626749,15.9529,94.12,94.02,15.9513]
[1644648626948,5.315,94.119,94.011,1.50253849]
[1644648627147,5.315,94.119,94.0,28.6244]
[1644648627148,7.69866791,94.119,94.008,1.50253849]
[1644648627350,7.69866791,94.119,93.95,8.3]
[1644648627351,0.48,94.118,93.999,1.50253849]
[1644648627649,0.48,94.108,93.976,1.50253849]